Cogmind - Beta 14 @@@ ROGUE MODE // 2025.01.15 @ 15:15:40 Player: Vimes Result: Destroyed by 75-S3F(R) with Subdweller Laser Performance ------------- Evolutions (0) 0 Regions Visited (3) 600 Robots Destroyed (14) 70 Value Destroyed (486) 486 Prototype IDs (0) 0 Alien Tech Used (0) 0 Bonus (0) 0 TOTAL SCORE: 1156 Bonus ------- None Cogmind --------- Core Integrity 0/250 Matter 184/300 Energy 80/100 System Corruption 0% Temperature Cool (6) Movement Walking (260) Ox2 Location -10/Subcaves Parts ------- > --- POWER (1) -------- (None) > --- PROPULSION (2) --- Aluminum Leg > --- UTILITY (2) ------ Large Storage Unit > --- WEAPON (2) ------- Light Assault Rifle Mining Claw > --- INVENTORY (15) --- Aluminum Leg Small Storage Unit Medium Matter Pod (33) Seismic Detector ECM Suite Weapon Shielding Scrap Shield Sensor Drone Bay Medium Laser Grenade Launcher Peak State ------------ > --- POWER ------------ Ion Engine > --- PROPULSION ------- Myomer Leg Myomer Leg > --- UTILITY ---------- Large Storage Unit Terrain Scanner > --- WEAPON ----------- Grenade Launcher Grenade Launcher > --- INVENTORY -------- Ion Engine Aluminum Leg Aluminum Leg Small Storage Unit Medium Matter Pod Terrain Scanner Seismic Detector ECM Suite Weapon Shielding Scrap Shield Sensor Drone Bay Medium Laser Light Assault Rifle Mining Claw [Rating: 21] Favorites ----------- Power Ion Engine Engine Ion Engine Propulsion Aluminum Leg Leg Aluminum Leg Utility Large Storage Unit Device Terrain Scanner Storage Large Storage Unit Weapon Grenade Launcher Energy Gun Medium Laser Ballistic Gun Light Assault Rifle Launcher Grenade Launcher Slashing Weapon Mining Claw Build | -11 -10 -10 -10 ------- Run | Yrd Mat Min Sub Slots Evolved . | . . . . Power . | . . . . Propulsion . | . . . . Utility . | . . . . Weapon . | . . . . Parts Attached 21 | 6 3 2 10 Power 2 | 1 . . 1 Engine 2 | 1 . . 1 Core . | . . . . Reactor . | . . . . Propulsion 5 | 2 . . 3 Treads . | . . . . Leg 5 | 2 . . 3 Wheel . | . . . . Hover . | . . . . Flight . | . . . . Utility 4 | 1 2 . 1 Device 2 | . 1 . 1 Storage 2 | 1 1 . . Processor . | . . . . Hackware . | . . . . Protection . | . . . . Artifact . | . . . . Weapon 10 | 2 1 2 5 Energy Gun 1 | 1 . . . Energy Cannon . | . . . . Ballistic Gun 3 | 1 . . 2 Ballistic Cannon . | . . . . Launcher 4 | . 1 1 2 Special Weapon . | . . . . Impact Weapon . | . . . . Slashing Weapon 2 | . . 1 1 Piercing Weapon . | . . . . Special Melee Weapon . | . . . . Unidentified Prototypes . | . . . . Parts Lost 7 | . . . 7 Power 2 | . . . 2 Propulsion 2 | . . . 2 Utility 2 | . . . 2 Weapon 1 | . . . 1 Highest Loss Streak 2 | . . . 2 To Critical Strikes 1 | . . . 1 Average Slot Usage (%) 94 | . 98 100 90 Engine 13 | . 14 14 13 Leg 27 | . 28 28 26 Device 9 | . 12 14 6 Storage 14 | . 14 14 14 Energy Gun 7 | . 14 14 1 Ballistic Gun 3 | . 5 . 3 Launcher 14 | . 8 12 18 Slashing Weapon 2 | . . 1 4 Peak Build Rating 21 | 6 7 9 21 Average Rating 12 | 4 6 7 17 On Entrance 5 | . 6 7 9 Naked Turns . | . . . . Heaviest Build 32 | 13 31 31 32 Greatest Support 50 | 20 20 20 50 Greatest Overweight (x) 1 | . 1 1 1 Average Overweight (x) . | . . 1 . Largest Inventory Capacity 15 | 8 15 15 15 Average Capacity 12 | 7 8 15 15 Most Carried 15 | 5 9 14 15 Average Carried 10 | 1 6 10 14 Final Capacity 15 | 8 15 15 15 Final Carried 14 | 1 9 14 11 Class Distribution -------------------- 100% | Mutant Dominant Class ---------------- Mutant | -10/Materials Mutant | -10/Mines Mutant | -10/Subcaves Resources | -11 -10 -10 -10 ----------- Run | Yrd Mat Min Sub Matter Collected 522 | 259 71 33 159 Remotely . | . . . . Salvage Created 309 | . 110 . 199 Parts 24 | . 13 . 11 Haulers Intercepted . | . . . . Recyclers Shooed . | . . . . Parts Field Recycled . | . . . . Retrieved Matter . | . . . . Parts Self-Destructed 11 | . . . 11 Prevented . | . . . . Kills | -11 -10 -10 -10 ------- Run | Yrd Mat Min Sub Combat Hostiles Destroyed 14 | . 6 . 8 Guns 5 | . 5 . . AOE 9 | . 1 . 8 Classes Destroyed 3 | . 2 . 1 Swarmer 3 | . 3 . . Grunt 5 | . 3 . 2 Subdweller 6 | . . . 6 Best Kill Streak 4 | . 3 . 4 Combat Bots Only 4 | . 3 . 4 Max Kills in Single Turn 3 | . 1 . 3 Gunslinging . | . . . . Exploded 3 | . 1 . 3 Melee . | . . . . Uniques/NPCs Destroyed . | . . . . Combat | -11 -10 -10 -10 -------- Run | Yrd Mat Min Sub Hostile Shots Fired 71 | . 23 . 48 Missed 26 | . 10 . 16 Damage Taken 1005 | . 134 . 871 Core 264 | . 35 . 229 Absorbed by Shields . | . . . . Core Remaining (%) 100 | 100 . . . Volleys Fired 23 | . 11 3 9 Largest 2 | . 2 1 2 Hottest 80 | . 80 50 60 Shots Fired 37 | . 16 3 18 Gun 14 | . 11 3 . Cannon . | . . . . Launcher 23 | . 5 . 18 Special . | . . . . Kinetic . | . . . . Thermal 14 | . 11 3 . Explosive 23 | . 5 . 18 Electromagnetic . | . . . . Robot Hit Streak 10 | . 6 . 10 Robot Miss Streak 2 | . 2 . 2 Penetration Max . | . . . . Secondary Targets . | . . . . Shots Hit Robots 18 | . 9 . 9 Core Hits 27 | . 11 . 16 Critical Kills . | . . . . Critical Parts Destroyed . | . . . . Critical Strikes 1 | . 1 . . Burn 1 | . 1 . . Melee Attacks 18 | . . 3 15 Impact . | . . . . Slashing 18 | . . 3 15 Piercing . | . . . . Sneak Attacks . | . . . . Combat Hostiles . | . . . . Follow-up Attacks . | . . . . Damage Inflicted 1248 | . 355 . 893 Guns 86 | . 86 . . Cannons . | . . . . Explosions 1162 | . 269 . 893 Melee . | . . . . Ramming . | . . . . Kinetic . | . . . . Thermal 86 | . 86 . . Explosive 1162 | . 269 . 893 Electromagnetic . | . . . . Impact . | . . . . Slashing . | . . . . Piercing . | . . . . Highest Corruption . | . . . . Average Corruption . | . . . . Corruption Purged . | . . . . Corruption Blocked . | . . . . Overload Shots . | . . . . Overflow Damage 2 | . 2 . . Projectiles . | . . . . Explosions 2 | . 2 . . Melee . | . . . . Knockbacks . | . . . . Impact . | . . . . Kinetic . | . . . . Secondary . | . . . . Self-Inflicted Damage 39 | . 13 . 26 Shots 4 | . 2 . 2 Rammed . | . . . . Targets Rammed . | . . . . Kicked . | . . . . Crushed . | . . . . Highest Temperature 118 | . 118 30 . Average Temperature 42 | . 47 16 . Received Heat Transfer 228 | . 36 . 192 Siege Activations . | . . . . Robots Corrupted . | . . . . Combat Hostiles . | . . . . Parts Fried . | . . . . Impact Corruptions . | . . . . Robots Melted . | . . . . Combat Hostiles . | . . . . Parts Melted . | . . . . Heat Transferred 333 | . 333 . . Parts Sabotaged . | . . . . Parts Stolen . | . . . . Parts Stripped . | . . . . Power Chain Reactions . | . . . . Alert | -11 -10 -10 -10 ------- Run | Yrd Mat Min Sub Peak Influence 252 | . 252 97 . Initial 97 | . . 97 . Average 98 | . 117 97 . Maximum Alert Level 1 | . 1 . . Low Security (%) 93 | 100 88 100 . Level 1 6 | . 11 . . Level 2 . | . . . . Level 3 . | . . . . Level 4 . | . . . . Level 5 . | . . . . High Security . | . . . . Max Security . | . . . . Squads Dispatched 1 | . 1 . . Investigation . | . . . . Extermination . | . . . . Reinforcement 1 | . 1 . . Assault . | . . . . Garrison . | . . . . Intercept . | . . . . Searches Triggered . | . . . . Construction Impeded . | . . . . Haulers Reinforced . | . . . . Active Scanning Responses . | . . . . Cargo Convoy Interrupts . | . . . . Stealth | -11 -10 -10 -10 --------- Run | Yrd Mat Min Sub Distress Signals . | . . . . Communications Jammed . | . . . . Distress Signals . | . . . . Times Spotted 23 | . 7 . 16 Peak Tracking Total 8 | . 3 . 8 Tactical Retreats . | . . . . Traps | -11 -10 -10 -10 ------- Run | Yrd Mat Min Sub Traps Triggered 3 | . . . 3 Indirectly . | . . . . Trap Hack Attempts . | . . . . Triggered . | . . . . Disarmed . | . . . . Reprogrammed . | . . . . Reused . | . . . . Traps Extracted . | . . . . Installed . | . . . . Triggered . | . . . . Machines | -11 -10 -10 -10 ---------- Run | Yrd Mat Min Sub Machines Disabled 2 | . 2 . . Max in Single Turn 1 | . 1 . . Machines Repaired . | . . . . Machines Dismantled . | . . . . Machines Sabotaged . | . . . . Overloaded Fab Kills . | . . . . Hacking | -11 -10 -10 -10 --------- Run | Yrd Mat Min Sub Machines Accessed 3 | . 2 1 . Terminals 1 | . 1 . . Fabricators . | . . . . Repair Stations . | . . . . Recycling Units 1 | . 1 . . Scanalyzers . | . . . . Garrison Access . | . . . . Total Hacks 4 | . 3 1 . Successful 4 | . 3 1 . Failed . | . . . . Catastrophic . | . . . . Database Lockouts . | . . . . Manual . | . . . . Terminals 1 | . 1 . . Fabricators . | . . . . Repair Stations . | . . . . Recycling Units 2 | . 2 . . Scanalyzers . | . . . . Garrison Access . | . . . . Terminal Hacks 2 | . 1 1 . Open Door 1 | . . 1 . Zone Layout 1 | . 1 . . Fabricator Hacks . | . . . . Repair Station Hacks . | . . . . Recycling Unit Hacks 2 | . 2 . . Retrieve Matter 1 | . 1 . . Retrieve Components 1 | . 1 . . Scanalyzer . | . . . . Garrison Access Hacks . | . . . . Unauthorized Hacks . | . . . . Terminals . | . . . . Fabricators . | . . . . Repair Stations . | . . . . Recycling Units . | . . . . Scanalyzers . | . . . . Garrison Access . | . . . . Data Cores Recovered . | . . . . Used . | . . . . Hacking Detections . | . . . . Full Trace Events . | . . . . Feedback Events . | . . . . Feedback Blocked . | . . . . Robot Schematics Acquired . | . . . . Robots Built . | . . . . Authchips . | . . . . Time . | . . . . Total Robot Build Rating . | . . . . Part Schematics Acquired . | . . . . Parts Built . | . . . . Authchips . | . . . . Time . | . . . . Total Part Build Rating . | . . . . Parts Repaired . | . . . . Time . | . . . . Parts Recycled . | . . . . Recycled Matter . | . . . . Retrieved Matter . | . . . . Retrieved Components . | . . . . Parts Scanalyzed . | . . . . Part Schematics Acquired . | . . . . Parts Damaged . | . . . . Bothacking | -11 -10 -10 -10 ------------ Run | Yrd Mat Min Sub Used RIF Installer . | . . . . Robots Hacked . | . . . . Non-combat . | . . . . Combat . | . . . . Robot Hacks Applied . | . . . . Relay Couplers Released . | . . . . Fabnet Peak Effective % . | . . . . Robots Rewired . | . . . . Allies Hacked . | . . . . Hacks Repelled . | . . . . Allies | -11 -10 -10 -10 -------- Run | Yrd Mat Min Sub Total Allies . | . . . . Largest Group . | . . . . Highest-Rated Group . | . . . . Highest-Rated Ally . | . . . . Total Orders . | . . . . Ally Attacks . | . . . . Total Damage . | . . . . Kills . | . . . . Allies Corrupted . | . . . . Allies Melted . | . . . . Intel | -11 -10 -10 -10 ------- Run | Yrd Mat Min Sub Robot Analysis Total . | . . . . Derelict Logs Recovered 3 | . . 1 2 Drone Launches . | . . . . Drone Recoveries . | . . . . Exploration | -11 -10 -10 -10 ------------- Run | Yrd Mat Min Sub Turns Passed 1330 | 66 346 232 686 Spaces Moved 834 | 57 244 111 422 Core 21 | 21 . . . Treads . | . . . . Legs 813 | 36 244 111 422 Wheels . | . . . . Hover . | . . . . Flight . | . . . . Fastest Speed 50 | 50 120 190 120 Average Speed 134 | 94 120 190 133 Slowest Speed 190 | 120 190 190 190 Overloaded Moves . | . . . . Propulsion Burnouts . | . . . . Robots Hopped . | . . . . Cave-ins Triggered . | . . . . Exploration Rate (%) 25 | 4 42 20 34 Regions Visited 3 Branch Regions 2 Pre-discovered Areas 1 | . . . 1 Known Exits Taken . | . . . . Unknown Exits Taken 3 | 1 1 1 . Scrap Searched 1 | . . 1 . Spaces Dug . | . . . . Terrain Destroyed 119 | . 43 . 76 Melee . | . . . . Projectile . | . . . . AOE 119 | . 43 . 76 Terrain Rammed . | . . . . Walls Destroyed . | . . . . Machines Disabled . | . . . . Actions | -11 -10 -10 -10 --------- Run | Yrd Mat Min Sub Total 965 | 69 280 123 493 Wait 40 | . 7 . 33 Move 831 | 56 243 110 422 Hop . | . . . . Pick Up 25 | 7 12 5 1 Fast Attach 1 | . 1 . . Attach 10 | 6 . . 4 Detach . | . . . . Swap 10 | . 2 2 6 Drop 7 | . 4 . 3 Fire 23 | . 11 3 9 Melee 18 | . . 3 15 Ram . | . . . . Kick . | . . . . Crush . | . . . . Escape Stasis . | . . . . Rewire . | . . . . Trap . | . . . . Miscellaneous . | . . . . Route ------- -11/Scrapyard -10/Materials -10/Mines -10/Subcaves (discovered 1 exit: Mat) History --------- Turn | Location | Event 6 | -11/Scrapyard | Discovered new exit (range 16) 67 | -11/Scrapyard | Entered Materials 326 | -10/Materials | Build established: Mutant 361 | -10/Materials | Discovered new exit (range 12) 413 | -10/Materials | Entered Mines 452 | -10/Mines | Met a Derelict bent on vengeance 459 | -10/Mines | Learned 4 Materials zone layouts 535 | -10/Mines | Discovered new exit (range 9) 574 | -10/Mines | Found the Drone Emporium 584 | -10/Mines | Found Prototype Device 645 | -10/Mines | Entered Subcaves 729 | -10/Subcaves | Ambushed by swarm of Subdwellers 735 | -10/Subcaves | Ambushed by Subdwellers from Twisted Machinery 918 | -10/Subcaves | Identified exit to Materials 1220 | -10/Subcaves | Learned location of Storage (-8) 1310 | -10/Subcaves | Core integrity fell below 50% 1320 | -10/Subcaves | Core integrity fell below 20% 1331 | -10/Subcaves | Destroyed by 75-S3F(R) with Subdweller Laser Last Messages --------------- 01164_ Triggered Piercing Trap. 01164_ Spikes shoot up from the floor. 01164_ Critical hit (Impale). 01169_ Triggered Piercing Trap. 01169_ Spikes shoot up from the floor. 01169_ Critical hit (Impale). 01172_ Triggered Shrapnel Trap. 01172_ An expanding cloud of shrapnel blasts out in all directions. 01172_ Grenade Launcher destroyed. 01216_ Terrain Scanner destroyed. 01220_ Acquired derelict log, extracted data. World map updated: -8/Storage. 01253_ Ion Engine destroyed. 01268_ Myomer Leg destroyed. 01311_ L5-R7P(u) tweaks Twisted Machinery. 01322_ L5-R7P(u) builds Twisted Machinery. 01323_ Critical hit (Destroy). 01323_ Ion Engine destroyed. 01330_ Myomer Leg destroyed. Map ----- +----------------------------------------------------+ | ?????????????????????????????????????????????????? | | ?????????????????????????????????????????????????? | | ?????????????????????????????????????????????????? | | ?????????????????????????????????????????????????? | | ?????????????????????????????????????????????????? | | ?????????????????????????????????????????????????? | | ?????????????????????????????????????????????????? | | ?????????????????????????????????????????????????? | | ?????????????????????????????????????????????????? | | ?????????????????????????????????????????????????? | | ?????????????????????????????????????????????????? | | ?????????????????????????????????????????????????? | | ?????????????????????????????????????????????????? | | ?????????????????????????????????????????????????? | | ????????????????????????????????????????????????? | | ??????????????????????###?????????###???????????? | | ?????????????????????## ####????# ???????? #??# | | ?????????????????????# ?????? ???????? ## | | ?????????????????????? ?????? " "???# ## | | ??????????????????????# ??????# """""##??"""" | | ?????????????????????## #?###### "##"" ???# " " | | ?????????????????????# #?# ## "#"""#####"## | | ??????????????????????# ### """#""""#""#"" " | | ???????????????????????# ## """"""" " | | ??????????????????????## R R | | ??????????????????????# @ R # ## | | ??????????????????????# ## ### ######## | | ?????????????????????# ?## #?## #??????## | | ?????????????????????###???## ##??####???????? | | ????????????????????????????#######??????????????? | | ????????????????????????????????????????????????## | | ???????????????????????????????????????????????## | | ???????????????????????????????????????????????# | | ???????????????????????????????????????????????# | | ???????????????????????????????????????????????### | | ?????????????????????????????????????????????????# | | ?????????????????????????????????????????????????# | | ???#?????????????????????????????????????????????# | | #????????????????????????????????????????????????# | | #????????????????????????????????????????????????# | | #????????????????????????????????????????????????# | | #????????????????????????????????????????????????# | | ?????????????????????????????????????????????????# | | ??????????????????????????????????###????????????# | | #??????????????##########?????????# ###?????????? | | ???????????????# #?????#???# ######??### | | #??????????????# #????????### #### # | | ????????????????# ########## ## # # | | ???????????????## ## # # | | ????????????#??# ## ### | +----------------------------------------------------+ Best States ------------- Heat Dissipation 25 Energy Generation 10 Energy Capacity 250 Matter Stores 300 Matter Capacity 300 Sight Range 16 Terrain Scan Range 14 Terrain Scan Density 10 Evasion (%) 55 Item Schematics ----------------- None Robot Schematics ------------------ None Fabricated ------------ Nothing Alien Tech Used ----------------- None Achievements -------------- None Challenges ------------ None Game ------ Seed ActuatorAssaultRedirector Manual? 0 Play Time 00:25:46 Cumulative 11.3 hours Start 2025.01.15 @ 14:47:10 End 2025.01.15 @ 15:15:40 Sessions 1 Manual Loads 0 Difficulty Rogue Special Mode None Game No. 12 Rogue 12 Adventurer 0 Explorer 0 Win Type - Total 0 Types 0/0/0/0/0/0/0/0/0 Lore% 7 Gallery% 15 Achievement% 14 Wizard Run 0 Options --------- Layout 1 ASCII 0 Keyboard 0 Movement Numpad Keybinds 0 Fullscreen 1 Font 24/Smallcaps Map View 50x35 Zoom Use 0% Tactical HUD 1 Map Filters NONE Filters NONE Steam 1 RUN: 36479c0a-0201-4e87-90da-e2dae87d5c5f